[Event "*** Titled Tuesday Blitz"]
[Site "Chess.com"]
[Date "2020.04.14"]
[Round "3"]
[White "ApacheSVD"]
[Black "IMinTheWings"]
[Result "1-0"]
[WhiteElo "2375"]
[BlackElo "2174"]
[TimeControl "180+1"]
[EndTime "10:29:39 PDT"]
[Termination "ApacheSVD won by checkmate"]

1. e4 {[%clk 0:03:00.9]} 1... e6 {[%clk 0:03:00.1]} 2. d4 {[%clk 0:03:00.5]}
2... d5 {[%clk 0:03:01]} 3. Nd2 {[%clk 0:03:01]} 3... c5 {[%clk 0:02:59.4]} 4.
exd5 {[%clk 0:03:00.8]} 4... Qxd5 {[%clk 0:02:59.6]} 5. Ngf3 {[%clk 0:03:01.2]}
5... cxd4 {[%clk 0:03:00]} 6. Bc4 {[%clk 0:03:00.9]} 6... Qd7 {[%clk 0:03:00.7]}
7. O-O {[%clk 0:03:01.2]} 7... a6 {[%clk 0:02:53.9]} 8. a4 {[%clk 0:02:59]} 8...
Nc6 {[%clk 0:02:54.1]} 9. Nb3 {[%clk 0:02:57.9]} 9... Bd6 {[%clk 0:02:54.1]} 10.
Nbxd4 {[%clk 0:02:14.3]} 10... Nxd4 {[%clk 0:02:51.6]} 11. Qxd4 {[%clk
0:02:14.1]} 11... f6 {[%clk 0:02:42.5]} 12. Re1 {[%clk 0:02:08.1]} 12... e5
{[%clk 0:02:41.1]} 13. Bb3 {[%clk 0:01:55.8]} 13... Ne7 {[%clk 0:02:39.4]} 14.
Qc4 {[%clk 0:01:51.7]} 14... Nc6 {[%clk 0:02:25.4]} 15. Be3 {[%clk 0:01:51.3]}
15... Na5 {[%clk 0:02:21.3]} 16. Qd5 {[%clk 0:01:49.3]} 16... Nxb3 {[%clk
0:02:20.4]} 17. Qxb3 {[%clk 0:01:48.3]} 17... Qe6 {[%clk 0:02:20.2]} 18. c4
{[%clk 0:01:45.7]} 18... O-O {[%clk 0:02:06.1]} 19. Rad1 {[%clk 0:01:44.6]}
19... Bc7 {[%clk 0:01:56.3]} 20. Qc2 {[%clk 0:01:41.3]} 20... b6 {[%clk
0:01:51.1]} 21. b4 {[%clk 0:01:36.1]} 21... Bb7 {[%clk 0:01:49.3]} 22. c5 {[%clk
0:01:33.8]} 22... Qg4 {[%clk 0:01:31.9]} 23. Qb3+ {[%clk 0:01:14.3]} 23... Kh8
{[%clk 0:01:30.4]} 24. h3 {[%clk 0:01:13.6]} 24... Qg6 {[%clk 0:01:24]} 25. Nh4
{[%clk 0:01:13.8]} 25... Qh5 {[%clk 0:01:24.4]} 26. cxb6 {[%clk 0:01:02.2]}
26... Bxb6 {[%clk 0:01:19.9]} 27. Bxb6 {[%clk 0:00:58]} 27... Qxh4 {[%clk
0:01:20.6]} 28. Rd7 {[%clk 0:00:55.5]} 28... Bc6 {[%clk 0:01:18.1]} 29. Rc7
{[%clk 0:00:55.9]} 29... Rac8 {[%clk 0:01:14.9]} 30. b5 {[%clk 0:00:47.7]} 30...
axb5 {[%clk 0:01:07.2]} 31. Rxc8 {[%clk 0:00:46.5]} 31... Rxc8 {[%clk
0:01:01.8]} 32. axb5 {[%clk 0:00:45.6]} 32... Ba8 {[%clk 0:00:59.3]} 33. Rd1
{[%clk 0:00:42.1]} 33... Qe4 {[%clk 0:00:57]} 34. f3 {[%clk 0:00:40.2]} 34...
Qe2 {[%clk 0:00:33.1]} 35. Ba5 {[%clk 0:00:28.2]} 35... e4 {[%clk 0:00:32]} 36.
Re1 {[%clk 0:00:24.5]} 36... Qc4 {[%clk 0:00:13.8]} 37. Qxc4 {[%clk 0:00:20.9]}
37... Rxc4 {[%clk 0:00:14.7]} 38. fxe4 {[%clk 0:00:21.4]} 38... Rxe4 {[%clk
0:00:15.1]} 39. Rd1 {[%clk 0:00:17.7]} 39... Re8 {[%clk 0:00:14.3]} 40. Rd7
{[%clk 0:00:15.6]} 40... h6 {[%clk 0:00:13.7]} 41. b6 {[%clk 0:00:14.3]} 41...
Rb8 {[%clk 0:00:14]} 42. Kf2 {[%clk 0:00:12.4]} 42... Kh7 {[%clk 0:00:14]} 43.
g4 {[%clk 0:00:10.6]} 43... Bc6 {[%clk 0:00:13.5]} 44. Rc7 {[%clk 0:00:08.8]}
44... Bd5 {[%clk 0:00:13]} 45. Ke3 {[%clk 0:00:08]} 45... h5 {[%clk 0:00:13.2]}
46. gxh5 {[%clk 0:00:07.3]} 46... f5 {[%clk 0:00:12.7]} 47. Kf4 {[%clk
0:00:05.8]} 47... Be4 {[%clk 0:00:12.6]} 48. Bc3 {[%clk 0:00:04.2]} 48... Rg8
{[%clk 0:00:12.2]} 49. Kg5 {[%clk 0:00:02.8]} 49... Kh8 {[%clk 0:00:09.5]} 50.
h6 {[%clk 0:00:02.9]} 50... Kh7 {[%clk 0:00:09.2]} 51. Rxg7+ {[%clk 0:00:02.6]}
51... Rxg7+ {[%clk 0:00:09.8]} 52. hxg7 {[%clk 0:00:02.8]} 52... Bb7 {[%clk
0:00:10.7]} 53. Kf6 {[%clk 0:00:03.2]} 53... Be4 {[%clk 0:00:10.7]} 54. Ke7
{[%clk 0:00:03.4]} 54... Kg8 {[%clk 0:00:10.6]} 55. Kf6 {[%clk 0:00:03.4]} 55...
f4 {[%clk 0:00:11.1]} 56. Bd4 {[%clk 0:00:02.9]} 56... f3 {[%clk 0:00:11.6]} 57.
h4 {[%clk 0:00:03.4]} 57... f2 {[%clk 0:00:11.9]} 58. Bxf2 {[%clk 0:00:02.4]}
58... Bb7 {[%clk 0:00:12.3]} 59. Bd4 {[%clk 0:00:03]} 59... Bh1 {[%clk
0:00:12.8]} 60. h5 {[%clk 0:00:03.5]} 60... Be4 {[%clk 0:00:13.2]} 61. h6 {[%clk
0:00:03.7]} 61... Kh7 {[%clk 0:00:12.3]} 62. Kf7 {[%clk 0:00:03.2]} 62... Bd5+
{[%clk 0:00:12.9]} 63. Kf8 {[%clk 0:00:03.6]} 63... Bb7 {[%clk 0:00:10.1]} 64.
g8=Q+ {[%clk 0:00:03.6]} 64... Kxh6 {[%clk 0:00:10.7]} 65. Qg7+ {[%clk
0:00:03.9]} 65... Kh5 {[%clk 0:00:10.6]} 66. Qxb7 {[%clk 0:00:04.8]} 66... Kh4
{[%clk 0:00:10.6]} 67. Qe4+ {[%clk 0:00:05.3]} 67... Kh3 {[%clk 0:00:11.5]} 68.
b7 {[%clk 0:00:06]} 68... Kh2 {[%clk 0:00:12.4]} 69. b8=Q+ {[%clk 0:00:06.9]}
69... Kh3 {[%clk 0:00:12.8]} 70. Qb3+ {[%clk 0:00:06]} 70... Kh2 {[%clk
0:00:12.7]} 71. Qec2+ {[%clk 0:00:06.9]} 71... Kh1 {[%clk 0:00:13.4]} 72. Qbb1#
{[%clk 0:00:07.8]} 1-0

[Event "*** Titled Tuesday Blitz"]
[Site "Chess.com"]
[Date "2020.04.14"]
[Round "3"]
[White "Faqade"]
[Black "ViIIagra"]
[Result "1-0"]
[WhiteElo "2636"]
[BlackElo "2799"]
[TimeControl "180+1"]
[EndTime "10:29:45 PDT"]
[Termination "Faqade won by resignation"]

1. e4 {[%clk 0:03:00.9]} 1... c5 {[%clk 0:02:58]} 2. Nf3 {[%clk 0:03:00.8]} 2...
d6 {[%clk 0:02:58.6]} 3. d4 {[%clk 0:02:59.4]} 3... cxd4 {[%clk 0:02:59.5]} 4.
Nxd4 {[%clk 0:02:59.8]} 4... Nf6 {[%clk 0:03:00.1]} 5. Nc3 {[%clk 0:02:59.8]}
5... Nc6 {[%clk 0:03:00.7]} 6. f3 {[%clk 0:02:57.2]} 6... e5 {[%clk 0:03:00.2]}
7. Nb3 {[%clk 0:02:57.1]} 7... Be7 {[%clk 0:02:59.6]} 8. Be3 {[%clk 0:02:57.5]}
8... Be6 {[%clk 0:02:58.1]} 9. Qe2 {[%clk 0:02:57.5]} 9... Qc8 {[%clk
0:02:49.9]} 10. O-O-O {[%clk 0:02:56.3]} 10... O-O {[%clk 0:02:50.1]} 11. g4
{[%clk 0:02:50.1]} 11... a5 {[%clk 0:01:54.5]} 12. g5 {[%clk 0:02:48.9]} 12...
Nd7 {[%clk 0:01:54.8]} 13. a3 {[%clk 0:02:29]} 13... a4 {[%clk 0:01:04.9]} 14.
Nd2 {[%clk 0:02:29.3]} 14... Nd4 {[%clk 0:01:04.8]} 15. Bxd4 {[%clk 0:02:29.3]}
15... exd4 {[%clk 0:01:05.7]} 16. Nb5 {[%clk 0:02:29.6]} 16... Bxg5 {[%clk
0:00:59.9]} 17. Nxd4 {[%clk 0:02:12.3]} 17... Ne5 {[%clk 0:01:00.2]} 18. Kb1
{[%clk 0:02:01]} 18... Qc5 {[%clk 0:00:50.7]} 19. h4 {[%clk 0:01:25.6]} 19...
Bf4 {[%clk 0:00:44.3]} 20. Nxe6 {[%clk 0:01:24.9]} 20... fxe6 {[%clk 0:00:45.2]}
21. Nc4 {[%clk 0:01:17.5]} 21... Nxc4 {[%clk 0:00:18.6]} 22. Qxc4 {[%clk
0:01:18.4]} 22... Qxc4 {[%clk 0:00:19.5]} 23. Bxc4 {[%clk 0:01:18.1]} 23... Kf7
{[%clk 0:00:20.4]} 24. h5 {[%clk 0:01:16.3]} 24... Ra5 {[%clk 0:00:14.7]} 25.
Rh4 {[%clk 0:01:13.9]} 25... Bh6 {[%clk 0:00:12.6]} 26. Rxd6 {[%clk 0:01:12]}
26... Ke7 {[%clk 0:00:12.7]} 27. Rxe6+ {[%clk 0:01:11.1]} 27... Kd7 {[%clk
0:00:13.6]} 28. Rh3 {[%clk 0:01:04.9]} 28... Rc5 {[%clk 0:00:11.4]} 29. Bd5
{[%clk 0:01:01.7]} 29... Rb8 {[%clk 0:00:08.1]} 30. Rh1 {[%clk 0:00:45.3]} 30...
Rf8 {[%clk 0:00:08.3]} 31. Rf1 {[%clk 0:00:43]} 31... Rf4 {[%clk 0:00:07.9]} 32.
Rb6 {[%clk 0:00:42.2]} 32... Rc7 {[%clk 0:00:06.8]} 33. Bxb7 {[%clk 0:00:40.7]}
33... Rh4 {[%clk 0:00:07.1]} 34. Bd5 {[%clk 0:00:39.1]} 34... Rxh5 {[%clk
0:00:07]} 35. Rd1 {[%clk 0:00:37.9]} 35... Ke7 {[%clk 0:00:07.4]} 36. Re6+
{[%clk 0:00:37]} 36... Kf8 {[%clk 0:00:06.7]} 37. c3 {[%clk 0:00:31]} 37... g6
{[%clk 0:00:07]} 38. Bc6 {[%clk 0:00:28.9]} 38... Kg7 {[%clk 0:00:06.6]} 39.
Bxa4 {[%clk 0:00:27]} 39... Rh3 {[%clk 0:00:07]} 40. Rd3 {[%clk 0:00:24.1]}
40... Bf4 {[%clk 0:00:06.8]} 41. e5 {[%clk 0:00:22]} 41... h5 {[%clk 0:00:06.6]}
42. Re8 {[%clk 0:00:19.8]} 42... Rh1+ {[%clk 0:00:06.1]} 43. Ka2 {[%clk
0:00:19.5]} 43... h4 {[%clk 0:00:07]} 44. e6 {[%clk 0:00:19.4]} 44... h3 {[%clk
0:00:07.5]} 45. e7 {[%clk 0:00:18.9]} 45... Re1 {[%clk 0:00:07.7]} 46. Rdd8
{[%clk 0:00:16.3]} 46... Rexe7 {[%clk 0:00:07]} 47. Rxe7+ {[%clk 0:00:17.2]}
47... Rxe7 {[%clk 0:00:07.9]} 48. Rd1 {[%clk 0:00:15.5]} 48... h2 {[%clk
0:00:08.3]} 49. Rh1 {[%clk 0:00:15.9]} 49... Re2 {[%clk 0:00:08.3]} 50. Bc6
{[%clk 0:00:15.6]} 50... Be5 {[%clk 0:00:08.4]} 51. Kb3 {[%clk 0:00:14.3]} 51...
Bf4 {[%clk 0:00:05.7]} 52. a4 {[%clk 0:00:14.1]} 52... Rg2 {[%clk 0:00:05.3]}
53. a5 {[%clk 0:00:14.3]} 53... Rg1 {[%clk 0:00:06]} 54. Rxh2 {[%clk 0:00:14]}
54... Bxh2 {[%clk 0:00:06.9]} 55. a6 {[%clk 0:00:14.4]} 55... Ra1 {[%clk
0:00:05.8]} 56. Ba4 {[%clk 0:00:14.3]} 56... Bg1 {[%clk 0:00:06.2]} 57. Kb4
{[%clk 0:00:14.4]} 57... Ra2 {[%clk 0:00:06.7]} 58. b3 {[%clk 0:00:14.1]} 58...
Kf6 {[%clk 0:00:07.2]} 59. c4 {[%clk 0:00:14.2]} 59... Rc2 {[%clk 0:00:07.5]}
60. Kb5 {[%clk 0:00:13.8]} 60... Re2 {[%clk 0:00:03.1]} 61. c5 {[%clk
0:00:13.4]} 61... Re7 {[%clk 0:00:04]} 62. b4 {[%clk 0:00:13.6]} 62... Ke5
{[%clk 0:00:04.6]} 63. Kb6 {[%clk 0:00:13.9]} 63... Kd5 {[%clk 0:00:02]} 64. a7
{[%clk 0:00:14.1]} 64... Rxa7 {[%clk 0:00:01.8]} 65. Kxa7 {[%clk 0:00:15]} 65...
Kc4 {[%clk 0:00:02.5]} 66. Kb7 {[%clk 0:00:13.8]} 66... Kxb4 {[%clk 0:00:03.1]}
67. c6 {[%clk 0:00:14.4]} 67... Bh2 {[%clk 0:00:03.8]} 68. Bc2 {[%clk
0:00:14.8]} 68... g5 {[%clk 0:00:03.8]} 69. Bf5 {[%clk 0:00:14.7]} 69... Kc5
{[%clk 0:00:03.5]} 70. Bg4 {[%clk 0:00:14.6]} 1-0

[Event "*** Titled Tuesday Blitz"]
[Site "Chess.com"]
[Date "2020.04.14"]
[Round "3"]
[White "Klavdia_Nik"]
[Black "VinzentSpitzl"]
[Result "0-1"]
[WhiteElo "2130"]
[BlackElo "2339"]
[TimeControl "180+1"]
[EndTime "10:29:45 PDT"]
[Termination "VinzentSpitzl won by resignation"]

1. Nf3 {[%clk 0:03:00.9]} 1... d5 {[%clk 0:02:59.5]} 2. c4 {[%clk 0:03:00.7]}
2... e6 {[%clk 0:02:58.8]} 3. b3 {[%clk 0:03:00.1]} 3... Nf6 {[%clk 0:02:59]} 4.
Bb2 {[%clk 0:03:00.5]} 4... Be7 {[%clk 0:02:59.6]} 5. g3 {[%clk 0:03:00.6]} 5...
O-O {[%clk 0:03:00.1]} 6. Bg2 {[%clk 0:03:01.3]} 6... c5 {[%clk 0:03:00.8]} 7.
O-O {[%clk 0:03:01.6]} 7... Nc6 {[%clk 0:03:01.4]} 8. d3 {[%clk 0:03:01.3]} 8...
d4 {[%clk 0:03:00.4]} 9. Nbd2 {[%clk 0:03:01.9]} 9... e5 {[%clk 0:02:59.1]} 10.
b4 {[%clk 0:03:01.6]} 10... cxb4 {[%clk 0:02:51.3]} 11. a3 {[%clk 0:03:00.6]}
11... bxa3 {[%clk 0:02:42.7]} 12. Bxa3 {[%clk 0:02:59.8]} 12... Bxa3 {[%clk
0:02:43.2]} 13. Rxa3 {[%clk 0:02:59.8]} 13... Qd6 {[%clk 0:02:42.1]} 14. Ra1
{[%clk 0:02:56.6]} 14... Bd7 {[%clk 0:02:37.3]} 15. Ng5 {[%clk 0:02:55.4]} 15...
a5 {[%clk 0:02:19.5]} 16. Qb3 {[%clk 0:02:52.1]} 16... Nb4 {[%clk 0:02:06.5]}
17. Rfc1 {[%clk 0:02:44.1]} 17... Rfb8 {[%clk 0:01:52.8]} 18. Qa3 {[%clk
0:02:30.6]} 18... Qf8 {[%clk 0:01:45.8]} 19. h3 {[%clk 0:02:25.4]} 19... Bc6
{[%clk 0:01:43.3]} 20. Ngf3 {[%clk 0:02:24.3]} 20... Qe8 {[%clk 0:01:33.8]} 21.
Rab1 {[%clk 0:02:17.6]} 21... b6 {[%clk 0:01:24.9]} 22. Kh2 {[%clk 0:02:09.2]}
22... Nd7 {[%clk 0:01:19.6]} 23. Ne1 {[%clk 0:02:01.7]} 23... Bxg2 {[%clk
0:01:15.8]} 24. Nxg2 {[%clk 0:02:02]} 24... Nc5 {[%clk 0:01:16.3]} 25. f3 {[%clk
0:01:58.8]} 25... Qa4 {[%clk 0:01:07.6]} 26. Ra1 {[%clk 0:01:54.2]} 26... Qxa3
{[%clk 0:01:06.6]} 27. Rxa3 {[%clk 0:01:54.6]} 27... Ra7 {[%clk 0:01:04.1]} 28.
Ne4 {[%clk 0:01:53.1]} 28... Nxe4 {[%clk 0:01:02.3]} 29. fxe4 {[%clk 0:01:53.5]}
29... f6 {[%clk 0:00:59.5]} 30. Ne1 {[%clk 0:01:53.6]} 30... Kf7 {[%clk
0:00:57.8]} 31. Nc2 {[%clk 0:01:54]} 31... Nxc2 {[%clk 0:00:56.5]} 32. Rxc2
{[%clk 0:01:52.5]} 32... b5 {[%clk 0:00:54]} 33. cxb5 {[%clk 0:01:47.9]} 33...
Rxb5 {[%clk 0:00:54.1]} 34. Rca2 {[%clk 0:01:41.2]} 34... g6 {[%clk 0:00:51.7]}
35. g4 {[%clk 0:01:40.8]} 35... Ke6 {[%clk 0:00:50.7]} 36. Kg3 {[%clk 0:01:41]}
36... f5 {[%clk 0:00:48.3]} 37. gxf5+ {[%clk 0:01:34.8]} 37... gxf5 {[%clk
0:00:49.2]} 38. exf5+ {[%clk 0:01:34.9]} 38... Kxf5 {[%clk 0:00:50.1]} 39. Kf3
{[%clk 0:01:35.2]} 39... Ke6 {[%clk 0:00:43.5]} 40. e4 {[%clk 0:01:35]} 40...
dxe3 {[%clk 0:00:41.4]} 41. Kxe3 {[%clk 0:01:34.6]} 41... Kd5 {[%clk 0:00:41.6]}
42. h4 {[%clk 0:01:31.3]} 42... h5 {[%clk 0:00:35.3]} 43. Rg2 {[%clk 0:01:29.1]}
43... Rb4 {[%clk 0:00:32.5]} 44. Rg8 {[%clk 0:01:21.7]} 44... Rxh4 {[%clk
0:00:30.4]} 45. Rd8+ {[%clk 0:01:21.8]} 45... Ke6 {[%clk 0:00:30.2]} 46. Re8+
{[%clk 0:01:19.8]} 46... Kf6 {[%clk 0:00:30.4]} 47. Rf8+ {[%clk 0:01:19.6]}
47... Ke7 {[%clk 0:00:30.6]} 48. Rf5 {[%clk 0:01:17.7]} 48... Ke6 {[%clk
0:00:29.4]} 49. Rf8 {[%clk 0:01:12.9]} 49... Rh3+ {[%clk 0:00:28.7]} 50. Ke4
{[%clk 0:01:13]} 50... Rh4+ {[%clk 0:00:29]} 51. Ke3 {[%clk 0:01:13]} 51... Rb4
{[%clk 0:00:22.5]} 52. Rh8 {[%clk 0:01:11.9]} 52... h4 {[%clk 0:00:22.4]} 53.
Rh6+ {[%clk 0:01:07.2]} 53... Kf5 {[%clk 0:00:21.8]} 54. Rh5+ {[%clk 0:01:07.3]}
54... Kf6 {[%clk 0:00:19.4]} 55. Rh8 {[%clk 0:00:57.1]} 55... Kg5 {[%clk
0:00:17.3]} 56. Rg8+ {[%clk 0:00:55.9]} 56... Kh5 {[%clk 0:00:17.2]} 57. Re8
{[%clk 0:00:52.3]} 57... Kg4 {[%clk 0:00:17]} 58. Rxe5 {[%clk 0:00:50.9]} 58...
h3 {[%clk 0:00:17]} 59. Ra1 {[%clk 0:00:32]} 59... h2 {[%clk 0:00:11.9]} 60. Re8
{[%clk 0:00:26.4]} 60... a4 {[%clk 0:00:08.3]} 61. Rg8+ {[%clk 0:00:22.1]} 61...
Kh3 {[%clk 0:00:08.5]} 62. Rh8+ {[%clk 0:00:21.2]} 62... Rh4 {[%clk 0:00:08.5]}
63. Rxh4+ {[%clk 0:00:17.6]} 63... Kxh4 {[%clk 0:00:09.4]} 64. Kf3 {[%clk
0:00:09.8]} 64... Kh3 {[%clk 0:00:09.7]} 65. Ke4 {[%clk 0:00:09.7]} 65... a3
{[%clk 0:00:09.9]} 66. d4 {[%clk 0:00:09.8]} 66... Kg2 {[%clk 0:00:10.2]} 67.
Ke5 {[%clk 0:00:06]} 67... h1=Q {[%clk 0:00:09.7]} 68. Rxh1 {[%clk 0:00:04.3]}
68... Kxh1 {[%clk 0:00:10.6]} 0-1

[Event "*** Titled Tuesday Blitz"]
[Site "Chess.com"]
[Date "2020.04.14"]
[Round "3"]
[White "Sanan_Sjugirov"]
[Black "JiaHaoxiang"]
[Result "1-0"]
[WhiteElo "2831"]
[BlackElo "2624"]
[TimeControl "180+1"]
[EndTime "10:29:46 PDT"]
[Termination "Sanan_Sjugirov won by checkmate"]

1. d4 {[%clk 0:03:00.9]} 1... d5 {[%clk 0:02:58]} 2. Nf3 {[%clk 0:03:00.1]} 2...
Nf6 {[%clk 0:02:57.8]} 3. Bf4 {[%clk 0:02:59.5]} 3... e6 {[%clk 0:02:54.9]} 4.
e3 {[%clk 0:02:59.1]} 4... Bd6 {[%clk 0:02:55.2]} 5. Nbd2 {[%clk 0:02:59.1]}
5... Bxf4 {[%clk 0:02:53.5]} 6. exf4 {[%clk 0:03:00]} 6... c5 {[%clk 0:02:53.5]}
7. dxc5 {[%clk 0:02:54]} 7... Qc7 {[%clk 0:02:53.4]} 8. g3 {[%clk 0:02:53.1]}
8... Qxc5 {[%clk 0:02:53]} 9. Bd3 {[%clk 0:02:49.3]} 9... O-O {[%clk 0:02:49.6]}
10. c3 {[%clk 0:02:46]} 10... b6 {[%clk 0:02:38.1]} 11. Qe2 {[%clk 0:02:41.9]}
11... a5 {[%clk 0:02:30.2]} 12. Nb3 {[%clk 0:02:41]} 12... Qc7 {[%clk
0:02:29.7]} 13. Nbd4 {[%clk 0:02:38.4]} 13... Nbd7 {[%clk 0:02:26.8]} 14. O-O
{[%clk 0:02:30.8]} 14... Nc5 {[%clk 0:02:26.6]} 15. Bb5 {[%clk 0:02:30.7]} 15...
Ba6 {[%clk 0:02:20]} 16. Bxa6 {[%clk 0:02:25.7]} 16... Nxa6 {[%clk 0:02:08.9]}
17. Ne5 {[%clk 0:02:15.2]} 17... Nc5 {[%clk 0:02:05.9]} 18. Rfe1 {[%clk
0:02:14.1]} 18... a4 {[%clk 0:02:04.6]} 19. Rad1 {[%clk 0:02:07.8]} 19... Nfe4
{[%clk 0:02:03]} 20. a3 {[%clk 0:02:05.6]} 20... Nd7 {[%clk 0:01:53.2]} 21. Nxd7
{[%clk 0:02:01.9]} 21... Qxd7 {[%clk 0:01:53.6]} 22. Nf3 {[%clk 0:01:56.1]}
22... Qc7 {[%clk 0:01:51.3]} 23. h4 {[%clk 0:01:46.2]} 23... Rad8 {[%clk
0:01:50.6]} 24. Kg2 {[%clk 0:01:40.7]} 24... Nd6 {[%clk 0:01:50.3]} 25. Nd4
{[%clk 0:01:38.7]} 25... Qc4 {[%clk 0:01:48.9]} 26. Qc2 {[%clk 0:01:24.8]} 26...
b5 {[%clk 0:01:41.9]} 27. Nf3 {[%clk 0:01:20.9]} 27... Qc6 {[%clk 0:01:38]} 28.
Kg1 {[%clk 0:01:15.1]} 28... h6 {[%clk 0:01:36]} 29. Ne5 {[%clk 0:01:10.2]}
29... Qb7 {[%clk 0:01:35.1]} 30. Qe2 {[%clk 0:01:09.6]} 30... Nc4 {[%clk
0:01:33.2]} 31. Nf3 {[%clk 0:01:05.7]} 31... Rfe8 {[%clk 0:01:32.3]} 32. Ne5
{[%clk 0:00:49]} 32... Qc7 {[%clk 0:01:28.6]} 33. Rd4 {[%clk 0:00:48]} 33...
Nxe5 {[%clk 0:01:27]} 34. fxe5 {[%clk 0:00:40.7]} 34... Rb8 {[%clk 0:01:27]} 35.
Red1 {[%clk 0:00:28.9]} 35... Rb7 {[%clk 0:01:24.7]} 36. h5 {[%clk 0:00:26.5]}
36... Qe7 {[%clk 0:01:24]} 37. Kg2 {[%clk 0:00:25.7]} 37... Qg5 {[%clk
0:01:23.8]} 38. Rg4 {[%clk 0:00:22.6]} 38... Qe7 {[%clk 0:01:22.1]} 39. Rb4
{[%clk 0:00:19.9]} 39... Reb8 {[%clk 0:01:21.1]} 40. Rdd4 {[%clk 0:00:19.9]}
40... Qc7 {[%clk 0:01:20.9]} 41. Rg4 {[%clk 0:00:15.7]} 41... Kh8 {[%clk
0:01:20.5]} 42. Rgf4 {[%clk 0:00:14.6]} 42... Qc6 {[%clk 0:01:18.6]} 43. Rfd4
{[%clk 0:00:14.4]} 43... Qc5 {[%clk 0:01:18.1]} 44. Qe3 {[%clk 0:00:14.1]} 44...
Qc7 {[%clk 0:01:18]} 45. g4 {[%clk 0:00:14.2]} 45... Qe7 {[%clk 0:01:17.6]} 46.
f4 {[%clk 0:00:12.8]} 46... Qh4 {[%clk 0:01:17.5]} 47. Qg3 {[%clk 0:00:12.8]}
47... Qxg3+ {[%clk 0:01:17.5]} 48. Kxg3 {[%clk 0:00:13.7]} 48... Kg8 {[%clk
0:01:18.1]} 49. g5 {[%clk 0:00:12.4]} 49... Kh7 {[%clk 0:01:16.7]} 50. Kg4
{[%clk 0:00:12.3]} 50... Rc8 {[%clk 0:01:16.3]} 51. f5 {[%clk 0:00:08.3]} 51...
hxg5 {[%clk 0:01:14.6]} 52. Kxg5 {[%clk 0:00:08.5]} 52... Rc4 {[%clk 0:01:10.8]}
53. Rf4 {[%clk 0:00:06.6]} 53... Rxb4 {[%clk 0:01:06.8]} 54. Rxb4 {[%clk
0:00:06.4]} 54... Rb6 {[%clk 0:01:04.9]} 55. f6 {[%clk 0:00:05.8]} 55... Rb8
{[%clk 0:01:02.3]} 56. fxg7 {[%clk 0:00:05.6]} 56... Kxg7 {[%clk 0:01:02.2]} 57.
h6+ {[%clk 0:00:06]} 57... Kh7 {[%clk 0:01:02.1]} 58. Kf6 {[%clk 0:00:06.9]}
58... Rb7 {[%clk 0:01:02.4]} 59. Rg4 {[%clk 0:00:06.3]} 59... Rb6 {[%clk
0:00:57.4]} 60. Rg7+ {[%clk 0:00:06.3]} 60... Kxh6 {[%clk 0:00:57.7]} 61. Rxf7
{[%clk 0:00:06.9]} 61... d4 {[%clk 0:00:55.5]} 62. cxd4 {[%clk 0:00:06.8]} 62...
b4 {[%clk 0:00:55.7]} 63. Re7 {[%clk 0:00:06.2]} 63... bxa3 {[%clk 0:00:54.7]}
64. bxa3 {[%clk 0:00:07.1]} 64... Kh5 {[%clk 0:00:54.1]} 65. Rxe6 {[%clk
0:00:07]} 65... Rb3 {[%clk 0:00:54.6]} 66. Ra6 {[%clk 0:00:06.2]} 66... Rxa3
{[%clk 0:00:54.6]} 67. e6 {[%clk 0:00:06.5]} 67... Rf3+ {[%clk 0:00:53.9]} 68.
Ke7 {[%clk 0:00:06.5]} 68... a3 {[%clk 0:00:54.5]} 69. d5 {[%clk 0:00:06.1]}
69... Rb3 {[%clk 0:00:52.9]} 70. d6 {[%clk 0:00:05.8]} 70... Kg6 {[%clk
0:00:53.4]} 71. d7 {[%clk 0:00:06]} 71... Rb7 {[%clk 0:00:52.6]} 72. Rxa3 {[%clk
0:00:06]} 72... Kf5 {[%clk 0:00:52.8]} 73. Rf3+ {[%clk 0:00:05.9]} 73... Ke4
{[%clk 0:00:52.8]} 74. Rh3 {[%clk 0:00:06.4]} 74... Kd5 {[%clk 0:00:52.7]} 75.
Rh5+ {[%clk 0:00:06.3]} 75... Kc6 {[%clk 0:00:52.7]} 76. Ke8 {[%clk 0:00:06.6]}
76... Rb8+ {[%clk 0:00:50.9]} 77. d8=Q {[%clk 0:00:06.8]} 77... Rxd8+ {[%clk
0:00:51.5]} 78. Kxd8 {[%clk 0:00:07.7]} 78... Kd6 {[%clk 0:00:52.4]} 79. e7
{[%clk 0:00:08.2]} 79... Ke6 {[%clk 0:00:53]} 80. e8=Q+ {[%clk 0:00:08.7]} 80...
Kf6 {[%clk 0:00:53.9]} 81. Qe5+ {[%clk 0:00:08.7]} 81... Kf7 {[%clk 0:00:53.8]}
82. Rh7+ {[%clk 0:00:08.7]} 82... Kg6 {[%clk 0:00:54]} 83. Rg7+ {[%clk
0:00:08.8]} 83... Kh6 {[%clk 0:00:54.4]} 84. Qg5# {[%clk 0:00:09.7]} 1-0